Cogmind - Beta 9.2 @@@ ROGUE MODE // 2019.11.17 @ 21:42:10 Player: Akiishi Result: Destroyed by G-47 Trooper with Particle Gun Performance ------------- Evolutions (2) 1000 Regions Visited (3) 600 Robots Destroyed (28) 140 Value Destroyed (746) 746 Prototype IDs (0) 0 Alien Tech Used (0) 0 Bonus (24) 24 TOTAL SCORE: 2510 Bonus ------- High Alert Combat Kills 24 Cogmind --------- Core Integrity 0/550 Matter 300/300 Energy 100/100 System Corruption 0% Temperature Cool (9) Movement Core (100) Ox1 Location -8/Materials Parts ------- > --- POWER (1) -------- (None) > --- PROPULSION (4) --- (None) > --- UTILITY (2) ------ Small Storage Unit > --- WEAPON (4) ------- (None) > --- INVENTORY (6) ---- Ion Engine Heat Sink Small Storage Unit Medium Storage Unit Medium Storage Unit Shield Generator Peak State ------------ > --- POWER ------------ Ion Engine > --- PROPULSION ------- Aluminum Leg Aluminum Leg Aluminum Leg Aluminum Leg > --- UTILITY ---------- Small Storage Unit Large Storage Unit > --- WEAPON ----------- EM Shotgun EM Shotgun > --- INVENTORY -------- Ion Engine Aluminum Leg Small Storage Unit Small Storage Unit Small Storage Unit Medium Storage Unit Medium Storage Unit Large Storage Unit EM Shotgun EM Shotgun [Rating: 12] Favorites ----------- Power Ion Engine Engine Ion Engine Propulsion Aluminum Leg Leg Aluminum Leg Utility Small Storage Unit Device Heat Sink Storage Small Storage Unit Protection Hardened Light Armor Plating Weapon EM Shotgun Energy Gun EM Shotgun Ballistic Gun Assault Rifle Launcher Grenade Launcher Build | -11 -10 -9 -8 ------- Run | Scr Mat Mat Mat Slots Evolved 4 | . . 2 2 Power . | . . . . Propulsion 2 | . . 2 . Utility . | . . . . Weapon 2 | . . . 2 Parts Attached 34 | 6 9 9 10 Power 4 | 1 1 1 1 Engine 4 | 1 1 1 1 Core . | . . . . Reactor . | . . . . Propulsion 16 | 2 1 6 7 Treads . | . . . . Leg 16 | 2 1 6 7 Wheel . | . . . . Hover . | . . . . Flight . | . . . . Utility 6 | 1 3 . 2 Device 1 | . 1 . . Storage 4 | 1 2 . 1 Processor . | . . . . Hackware . | . . . . Protection 1 | . . . 1 Artifact . | . . . . Weapon 8 | 2 4 2 . Energy Gun 6 | 1 3 2 . Energy Cannon . | . . . . Ballistic Gun 1 | 1 . . . Ballistic Cannon . | . . . . Launcher 1 | . 1 . . Special Weapon . | . . . . Impact Weapon . | . . . . Slashing Weapon . | . . . . Piercing Weapon . | . . . . Special Melee Weapon . | . . . . Unidentified Prototypes . | . . . . Parts Lost 15 | . 1 2 12 Power 2 | . . . 2 Propulsion 9 | . . 1 8 Utility 1 | . 1 . . Weapon 3 | . . 1 2 Highest Loss Streak 12 | . 1 1 12 Average Slot Usage (%) 88 | . 93 99 46 Engine 11 | . 14 11 4 Leg 33 | . 28 43 20 Device 2 | . 6 . . Storage 18 | . 15 22 15 Energy Gun 20 | . 26 21 5 Naked Turns . | . . . . Heaviest Build 31 | 11 31 31 31 Greatest Support 40 | 20 20 40 40 Greatest Overweight (x) 6 | 2 1 1 6 Average Overweight (x) . | . . . . Largest Inventory Capacity 12 | 6 12 12 12 Average Capacity 9 | 5 6 12 10 Most Carried 12 | 6 12 12 12 Average Carried 8 | 4 6 11 9 Final Capacity 12 | 6 12 12 6 Final Carried 12 | 6 12 12 6 Class Distribution -------------------- 53% | Mutant 46% | Scavenger-Mutant Dominant Class ---------------- Mutant | -10/Materials Scavenger-Mutant | -9/Materials Scavenger-Mutant | -8/Materials Resources | -11 -10 -9 -8 ----------- Run | Scr Mat Mat Mat Matter Collected 481 | 211 114 100 56 Remotely . | . . . . Salvage Created 968 | . 312 485 171 Parts 65 | . 26 27 12 Haulers Intercepted . | . . . . Recyclers Shooed 1 | . 1 . . Parts Field Recycled . | . . . . Retrieved Matter . | . . . . Parts Self-Destructed . | . . . . Prevented . | . . . . Kills | -11 -10 -9 -8 ------- Run | Scr Mat Mat Mat Combat Hostiles Destroyed 26 | . 9 14 3 Melee 1 | . . . 1 Guns 25 | . 9 14 2 Classes Destroyed 5 | . 3 1 1 Builder 1 | . . 1 . Watcher 1 | . 1 . . Swarmer 9 | . 3 6 . Grunt 16 | . 6 8 2 Sentry 1 | . . . 1 Best Kill Streak 7 | . 4 7 2 Combat Bots Only 6 | . 3 6 2 Max Kills in Single Turn 2 | . 2 2 1 Gunslinging 1 | . 1 . . Exploded . | . . . . Melee 1 | . . . 1 Uniques/NPCs Destroyed . | . . . . Combat | -11 -10 -9 -8 -------- Run | Scr Mat Mat Mat Damage Taken 2450 | . 253 592 1605 Core 682 | . 42 76 564 Absorbed by Shields . | . . . . Core Remaining (%) 88 | 100 83 81 . Volleys Fired 53 | . 19 24 10 Largest 2 | . 2 2 2 Hottest 100 | . 100 90 90 Shots Fired 102 | . 38 48 16 Gun 102 | . 38 48 16 Cannon . | . . . . Launcher . | . . . . Special . | . . . . Kinetic . | . . . . Thermal 16 | . 16 . . Explosive . | . . . . Electromagnetic 86 | . 22 48 16 Robot Hit Streak 9 | . 7 7 9 Robot Miss Streak 5 | . 5 3 3 Penetration Max . | . . . . Secondary Targets 5 | . 3 2 . Max Gunslinging Chain 1 | . 1 1 . Shots Hit Robots 78 | . 26 37 15 Core Hits 57 | . 16 29 12 Critical Hits . | . . . . Critical Kills . | . . . . Critical Parts Destroyed . | . . . . Melee Attacks . | . . . . Impact . | . . . . Slashing . | . . . . Piercing . | . . . . Sneak Attacks . | . . . . Combat Hostiles . | . . . . Follow-up Attacks . | . . . . Damage Inflicted 1094 | . 332 555 207 Guns 898 | . 332 384 182 Cannons . | . . . . Explosions 171 | . . 171 . Melee . | . . . . Ramming 25 | . . . 25 Kinetic . | . . . . Thermal 332 | . 161 171 . Explosive . | . . . . Electromagnetic 737 | . 171 384 182 Impact . | . . . . Slashing . | . . . . Piercing . | . . . . Highest Corruption 1 | . . 1 . Average Corruption 1 | . . 1 . Corruption Purged . | . . . . Effects 1 | . . 1 . Targeting Errors 1 | . . 1 . Overload Shots . | . . . . Overflow Damage 16 | . . 16 . Projectiles . | . . . . Explosions 16 | . . 16 . Melee . | . . . . Knockbacks . | . . . . Impact . | . . . . Kinetic . | . . . . Secondary . | . . . . Self-Inflicted Damage 147 | . . 142 5 Shots 4 | . . 4 . Rammed 3 | . . . 3 Targets Rammed 6 | . . . 6 Kicked 3 | . . . 3 Crushed . | . . . . Highest Temperature 165 | . 120 165 90 Average Temperature 52 | . 44 59 44 Received Heat Transfer 942 | . 108 132 702 Siege Activations . | . . . . Robots Corrupted . | . . . . Combat Hostiles . | . . . . Parts Fried 2 | . . 1 1 Impact Corruptions . | . . . . Robots Melted . | . . . . Combat Hostiles . | . . . . Parts Melted . | . . . . Heat Transferred 781 | . 481 300 . Parts Sabotaged . | . . . . Parts Stolen . | . . . . Parts Stripped . | . . . . Power Chain Reactions 4 | . . 4 . Missiles Intercepted . | . . . . Alert | -11 -10 -9 -8 ------- Run | Scr Mat Mat Mat Peak Influence 505 | . 268 505 176 Average Influence 180 | . 81 336 124 Maximum Alert Level 2 | . 1 2 . Low Security (%) 60 | 100 81 17 100 Level 1 28 | . 18 55 . Level 2 10 | . . 27 . Level 3 . | . . . . Level 4 . | . . . . Level 5 . | . . . . High Security . | . . . . Max Security . | . . . . Squads Dispatched 9 | . 2 6 1 Investigation 5 | . 2 3 . Extermination . | . . . . Reinforcement 4 | . . 3 1 Assault . | . . . . Garrison . | . . . . Intercept . | . . . . Construction Impeded . | . . . . Haulers Reinforced . | . . . . Stealth | -11 -10 -9 -8 --------- Run | Scr Mat Mat Mat Distress Signals 1 | . 1 . . Communications Jammed . | . . . . Distress Signals . | . . . . Times Spotted 47 | . 13 22 12 Peak Tracking Total 7 | . 4 5 7 Tactical Retreats 2 | . . 2 . Traps | -11 -10 -9 -8 ------- Run | Scr Mat Mat Mat Traps Triggered 2 | . 1 1 . Indirectly . | . . . . Trap Hack Attempts . | . . . . Triggered . | . . . . Disarmed . | . . . . Reprogrammed . | . . . . Reused . | . . . . Traps Extracted . | . . . . Installed . | . . . . Triggered . | . . . . Machines | -11 -10 -9 -8 ---------- Run | Scr Mat Mat Mat Machines Disabled 2 | . . 2 . Max in Single Turn 1 | . . 1 . Machines Sabotaged . | . . . . Garrisons Compromised . | . . . . Overloaded Fab Kills . | . . . . Fab Network Shutdowns . | . . . . Hacking | -11 -10 -9 -8 --------- Run | Scr Mat Mat Mat Machines Accessed 5 | . 2 3 . Terminals 4 | . 2 2 . Fabricators . | . . . . Repair Stations 1 | . . 1 . Recycling Units . | . . . . Scanalyzers . | . . . . Garrison Access . | . . . . Total Hacks 19 | . 6 13 . Successful 11 | . 4 7 . Failed 8 | . 2 6 . Catastrophic 1 | . . 1 . Database Lockouts . | . . . . Manual . | . . . . Terminals 15 | . 6 9 . Fabricators . | . . . . Repair Stations 4 | . . 4 . Recycling Units . | . . . . Scanalyzers . | . . . . Garrison Access . | . . . . Terminal Hacks 9 | . 4 5 . Record 6 | . 4 2 . Emergency Access Points 1 | . . 1 . Alert Level 1 | . . 1 . Hauler Manifests 1 | . . 1 . Fabricator Hacks . | . . . . Repair Station Hacks 2 | . . 2 . Scan Component 1 | . . 1 . Repair 1 | . . 1 . Recycling Unit Hacks . | . . . . Scanalyzer . | . . . . Garrison Access Hacks . | . . . . Unauthorized Hacks . | . . . . Terminals . | . . . . Fabricators . | . . . . Repair Stations . | . . . . Recycling Units . | . . . . Scanalyzers . | . . . . Garrison Access . | . . . . Data Cores Recovered . | . . . . Used . | . . . . Hacking Detections 4 | . 2 2 . Full Trace Events 3 | . 1 2 . Feedback Events 1 | . . 1 . Corruption 1 | . . 1 . Feedback Blocked . | . . . . Robot Schematics Acquired . | . . . . Robots Built . | . . . . Matter . | . . . . Time . | . . . . Total Robot Build Rating . | . . . . Part Schematics Acquired . | . . . . Parts Built . | . . . . Matter . | . . . . Time . | . . . . Total Part Build Rating . | . . . . Parts Repaired 1 | . . 1 . Time 32 | . . 32 . Parts Recycled . | . . . . Recycled Matter . | . . . . Retrieved Matter . | . . . . Retrieved Components . | . . . . Parts Scanalyzed . | . . . . Part Schematics Acquired . | . . . . Parts Damaged . | . . . . Bothacking | -11 -10 -9 -8 ------------ Run | Scr Mat Mat Mat Used RIF Installer . | . . . . Robots Hacked . | . . . . Non-combat . | . . . . Combat . | . . . . Robot Hacks Applied . | . . . . Relay Couplers Released . | . . . . Robots Rewired . | . . . . Allies Hacked . | . . . . Hacks Repelled . | . . . . Allies | -11 -10 -9 -8 -------- Run | Scr Mat Mat Mat Total Allies . | . . . . Largest Group . | . . . . Highest-Rated Group . | . . . . Highest-Rated Ally . | . . . . Total Orders . | . . . . Ally Attacks . | . . . . Total Damage . | . . . . Kills . | . . . . Allies Corrupted . | . . . . Allies Melted . | . . . . Intel | -11 -10 -9 -8 ------- Run | Scr Mat Mat Mat Robot Analysis Total . | . . . . Derelict Logs Recovered . | . . . . Drone Launches . | . . . . Drone Recoveries . | . . . . Exploration | -11 -10 -9 -8 ------------- Run | Scr Mat Mat Mat Turns Passed 1140 | 127 391 452 170 Spaces Moved 718 | 97 249 276 96 Core 72 | 31 . . 41 Treads . | . . . . Legs 646 | 66 249 276 55 Wheels . | . . . . Hover . | . . . . Flight . | . . . . Fastest Speed 50 | 50 120 120 100 Average Speed 119 | 114 121 120 120 Slowest Speed 350 | 150 150 150 350 Overloaded Moves . | . . . . Propulsion Burnouts . | . . . . Robots Hopped . | . . . . Cave-ins Triggered . | . . . . Exploration Rate (%) 22 | 5 39 33 12 Regions Visited 3 Branch Regions . Pre-discovered Areas . | . . . . Known Exits Taken . | . . . . Unknown Exits Taken 3 | 1 1 1 . Scrap Searched . | . . . . Spaces Dug . | . . . . Terrain Destroyed 10 | . . 10 . Melee . | . . . . Projectile . | . . . . AOE 10 | . . 10 . Actions | -11 -10 -9 -8 --------- Run | Scr Mat Mat Mat Total 896 | 113 303 349 131 Wait 36 | . . 29 7 Move 715 | 96 248 275 96 Hop . | . . . . Pick Up 33 | 11 14 7 1 Fast Attach 4 | 1 2 1 . Attach 15 | 5 . 4 6 Detach . | . . . . Swap 15 | . 7 4 4 Drop 19 | . 13 5 1 Fire 53 | . 19 24 10 Melee . | . . . . Ram 2 | . . . 2 Kick 4 | . . . 4 Crush . | . . . . Escape Stasis . | . . . . Rewire . | . . . . Trap . | . . . . Miscellaneous . | . . . . Route ------- -11/Scrapyard -10/Materials -9/Materials -8/Materials History --------- Turn | Location | Event 22 | -11/Scrapyard | Discovered new exit (range 16) 128 | -11/Scrapyard | Entered Materials 326 | -10/Materials | Build established: Mutant 463 | -10/Materials | Discovered new exit (range 16) 519 | -10/Materials | Entered another Materials area 519 | -9/Materials | Evolved 2 slots: Propulsion x2 570 | -9/Materials | Repaired EM Shotgun? 947 | -9/Materials | Build established: Scavenger-Mutant 950 | -9/Materials | Discovered new exit (range 16) 971 | -9/Materials | Entered another Materials area 971 | -8/Materials | Evolved 2 slots: Weapon x2 1098 | -8/Materials | Core integrity fell below 50% 1120 | -8/Materials | Lost 12 parts (2p8n2w) 1129 | -8/Materials | Core integrity fell below 20% 1141 | -8/Materials | Destroyed by G-47 Trooper with Particle Gun Last Messages --------------- K-01 Serf collects debris. Ion Engine destroyed. Kicked G-47 Trooper out of the way. Slammed into Y-45 Defender. Aluminum Leg destroyed. Kicked Y-45 Defender out of the way. U-05 Engineer repairs door. Aluminum Leg destroyed. Kicked L-31 Rogue out of the way. K-01 Serf collects debris. Hrd. Light Armor Plating severed. Aluminum Leg destroyed. U-05 Engineer lays Concrete. Dropped Lrg. Storage Unit. K-01 Serf collects debris. Slammed into G-47 Trooper. Slammed into Y-45 Defender. Y-45 Defender destroyed. [Achievement: Fist Fight] Acquired 21 matter. Map ----- +----------------------------------------------------+ | ?????????????????????????????????????????????????? | | ?????????????????????????????????????????????????? | | ?????????????????????????????????????????????????? | | ?????????????????????????????????????????????????? | | ?????????????????????????????????????????????????? | | ?????????????????????????????????????????????????? | | ?????????????????????????????????????????????????? | | ?????????????????????????????????????????????????? | | ?????????????????????????????????????????????????? | | ?????????????????????????????????????????????????? | | ?????????????????????????????????????????????????? | | ?????????????????????????????????????????????????? | | ?????????????????????????????????????????????????? | | ?????????????????????????????????????????????????? | | ?????????????????????????????????????????????????? | | ?????????????????????????????????????????????????? | | ?????????????????????????????????????????????????? | | ?????????????????????????????????????????????????? | | ?????????????????????????????????????????????????? | | ?????????????????????????????????????????????????? | | ?????????????????????????????????????????????????? | | ????????????????????????????????????###??????????? | | ???????????????# #######+######## #??????????? | | ???????????????# #??????????? | | ???????????????# +??????????? | | ???????????????# @ w #??????????? | | ????????????????# ##### ####### #??????????? | | ?????????????##??/????# #??????????????????????? | | ?????????????? ? ???# ##########?????????????? | | ??????????????? ??# # #?????????????? | | ?????????????????"" ## # """"" #?????????????? | | ???????????????????? + g# """"" #?????????????? | | ?????????????????????## g #! """"" #?????????????? | | ?????????????????"????# g +[!""""" #?????????????? | | ??????????????????"???# #%=""""" #?????????????? | | ?????????????????? ??# #*!""""" #?????????????? | | ???????????########+### #= """"" #?????????????? | | ????????? # #?????????????? | | ????????? ###############????????? | | ????????? # #?#"""#????????? | | ?????????# ###/###a !# ###"T"###??????? | | ??????????! ??? ??# !# # #??????? | | ??????????? ????# ???# # # #??????? | | ????????????????# ????# # # #??????? | | ????????????????#?????# # # #??????? | | ??????????????????????# # # #??????? | | ??????????????????????# # # #??????? | | ??????????????????????# # + ###????? | | ??????????????????????# # # ""#????? | | ??????????????????????# # # Y"#????? | +----------------------------------------------------+ Best States ------------- Heat Dissipation 35 Energy Generation 10 Energy Capacity 250 Matter Stores 300 Matter Capacity 300 Sight Range 16 Terrain Scan Density 10 Evasion (%) 50 Item Schematics ----------------- None Robot Schematics ------------------ None Fabricated ------------ Nothing Alien Tech Used ----------------- None Achievements -------------- Fist Fight Challenges ------------ None Game ------ Seed SkeletonDroneInjector Manual? 0 Play Time 00:21:36 Cumulative 4.7 hours Start 2019.11.17 @ 21:21:14 End 2019.11.17 @ 21:42:10 Sessions 1 Manual Loads 0 Difficulty Rogue Special Mode None Game No. 15 Rogue 15 Adventurer 0 Explorer 0 Win Type - Total 0 Types 0/0/0/0/0/0/0 Lore% 16 Gallery% 11 Achievement% 10 Wizard Run 0 Options --------- ASCII 0 Keyboard 0 Movement Numpad Keybinds 0 Fullscreen 1 Font 18/SmallcapsGlow Map View 76x50 Tactical HUD 0 Map Filters NONE Filters NONE Steam 1 RUN: bdf4e15a-94d5-4c61-bbca-57297b9cb42e